bitfinex/quotes_ETHUSD_20230110
["timestamp","ask_amount","ask_price","bid_price","bid_amount"]
[1673310517739,4.5297001,1323.4,1323.3,48.34236192]
[1673310523204,4.5297001,1323.4,1323.3,50.0393589]
[1673310524493,4.5297001,1323.4,1323.3,49.2533589]
[1673310525560,4.5297001,1323.4,1323.3,50.1443589]
[1673310532508,4.5297001,1323.4,1323.3,49.01414915]
[1673310532871,4.5297001,1323.4,1323.3,51.27299955]
[1673310533741,4.5297001,1323.4,1323.3,54.77299955]
[1673310533953,4.5297001,1323.4,1323.3,51.27299955]
[1673310535919,0.6260001,1323.4,1323.3,62.77299955]
[1673310536133,8.8985,1323.7,1323.4,4.37800029]
[1673310536360,8.8985,1323.7,1323.5,35.15036601]
[1673310536585,8.8985,1323.7,1323.5,38.02765262]
[1673310536761,8.8985,1323.7,1323.5,35.21502123]
[1673310536969,8.8985,1323.7,1323.5,34.08519586]
[1673310538459,8.8985,1323.7,1323.5,35.21502123]
[1673310539019,9.4653,1323.7,1323.6,5.67223226]
[1673310539238,8.8985,1323.7,1323.6,35.34479424]
[1673310539390,0.066,1323.7,1323.6,35.57479424]
[1673310539602,10.30566336,1323.9,1323.6,35.57479424]
[1673310539808,10.37166336,1323.9,1323.7,4.02766064]
[1673310540072,10.37166336,1323.9,1323.8,26.45969064]
[1673310540238,10.37166336,1323.9,1323.8,26.52434586]
[1673310540455,10.37166336,1323.9,1323.8,26.75434586]
[1673310540864,1.76556336,1323.9,1323.8,26.75434586]
[1673310541108,1.69956336,1323.9,1323.8,26.75434586]
[1673310542243,4.02943014,1324.0,1323.8,31.32814767]
[1673310542575,8.8424066,1324.1,1323.9,16.67637287]
[1673310542752,8.8424066,1324.1,1324.0,34.00914064]
[1673310542753,0.2411066,1324.1,1324.0,34.00914064]
[1673310542963,0.1751066,1324.1,1324.0,37.30379586]
[1673310543309,0.1751066,1324.1,1324.0,42.2096822]
[1673310544222,1.91241559,1324.2,1324.0,42.2096822]
[1673310544428,1.91241559,1324.2,1324.1,3.79766064]
[1673310544688,0.21285223,1324.2,1324.1,26.45453064]
[1673310544898,0.21285223,1324.2,1324.1,26.51918586]
[1673310545215,2.71e-06,1324.4,1324.2,2.71285223]
[1673310545379,0.016,1324.4,1324.2,4.01051287]
[1673310545593,0.05,1324.4,1324.2,11.56204287]
[1673310545798,16.07030875,1324.5,1324.2,0.27750745]
[1673310546046,1.69424168,1324.4,1324.2,0.21285223]
[1673310546258,11.50398604,1324.4,1324.2,0.21285223]
[1673310546426,16.81169439,1324.4,1324.2,0.21285223]
[1673310546638,24.36256439,1324.4,1324.2,0.21285223]
[1673310548049,26.62172875,1324.4,1324.2,0.21285223]
[1673310548224,25.95840491,1324.3,1324.2,0.21285223]
[1673310548422,24.28016594,1324.3,1324.2,0.21285223]
[1673310548635,25.97440762,1324.3,1324.2,0.21285223]
[1673310549381,27.19340762,1324.3,1324.2,0.21285223]
[1673310549609,29.45257198,1324.3,1324.2,0.21285223]
[1673310550155,27.7583303,1324.3,1324.2,0.21285223]
[1673310550551,27.7583303,1324.3,1324.2,0.89195223]
[1673310551068,28.3249303,1324.3,1324.2,0.89195223]
[1673310551484,31.15284156,1324.3,1324.2,0.89195223]
[1673310552962,38.70399156,1324.3,1324.2,0.89195223]
[1673310554099,41.73835441,1324.3,1323.9,0.06465522]
[1673310554315,2.92218378,1324.1,1323.7,8.06465522]
[1673310554638,22.78325882,1324.1,1323.7,11.86231586]
[1673310554847,20.54301649,1324.1,1323.7,11.86231586]
[1673310555093,22.79926153,1324.1,1323.7,11.86231586]
[1673310555471,15.24680153,1324.1,1323.7,11.86231586]
[1673310556306,21.10936649,1324.1,1323.7,11.86231586]
[1673310556728,21.10936649,1324.1,1323.7,19.41685586]
[1673310557191,30.91790153,1324.1,1323.7,19.41681586]
[1673310557568,28.66165649,1324.1,1323.7,19.41681586]
[1673310557827,28.66165649,1324.1,1323.8,0.46792137]
[1673310558039,30.92161476,1324.1,1323.8,0.46792137]
[1673310559146,30.87161476,1324.1,1323.8,0.46792137]
[1673310560520,29.22943098,1324.1,1323.8,0.46792137]
[1673310562268,2.5,1324.0,1323.8,0.46792137]
[1673310562480,10.05312,1324.0,1323.8,0.46792137]
[1673310562782,10.06912271,1324.0,1323.8,0.46792137]
[1673310563024,17.62224271,1324.0,1323.8,0.46792137]
[1673310563214,15.12224271,1324.0,1323.8,0.46792137]
[1673310563985,22.67536271,1324.0,1323.8,0.46792137]
[1673310570076,24.36920884,1324.0,1323.8,0.46792137]
[1673310574234,2.5,1323.9,1323.8,0.46792137]
[1673310574592,38.45255117,1323.9,1323.8,0.46792137]
[1673310574754,37.90185388,1323.9,1323.8,0.46792137]
[1673310574964,30.34841388,1323.9,1323.8,0.46792137]
[1673310576023,28.09216884,1323.9,1323.8,0.46792137]
[1673310576226,30.34841388,1323.9,1323.8,0.46792137]
[1673310578084,28.09216884,1323.9,1323.8,0.46792137]
[1673310579103,30.34841388,1323.9,1323.8,0.46792137]
[1673310579857,1.70984884,1323.9,1323.8,0.46792137]
[1673310580006,0.00248163,1323.8,1323.6,23.32483522]
[1673310580544,0.00248163,1323.8,1323.6,8.21491522]
[1673310580761,16.71949047,1323.9,1323.6,8.21491522]
[1673310580969,24.27334047,1323.9,1323.6,8.21491522]
[1673310581381,9.16577047,1323.9,1323.6,8.21491522]
[1673310581597,0.01600271,1323.9,1323.6,27.87343187]
[1673310581813,25.22773323,1324.0,1323.6,27.87343187]
[1673310581814,31.56694594,1324.0,1323.6,27.87343187]
[1673310582020,31.56694594,1324.0,1323.6,31.3621176]
[1673310582236,31.56694594,1324.0,1323.6,31.34560311]
[1673310582464,31.56694594,1324.0,1323.6,27.85691738]
[1673310583300,31.56694594,1324.0,1323.6,34.15917323]
[1673310583618,31.56694594,1324.0,1323.6,35.85691738]
[1673310583793,31.56694594,1324.0,1323.6,43.41206738]
[1673310584005,31.56694594,1324.0,1323.6,35.85691738]
[1673310584214,31.56694594,1324.0,1323.6,43.41206738]
[1673310584573,31.56694594,1324.0,1323.6,46.90293218]
[1673310584794,31.56694594,1324.0,1323.6,43.41206738]
[1673310585184,31.56694594,1324.0,1323.6,35.85691738]
[1673310585402,31.56694594,1324.0,1323.6,38.66864495]
[1673310585939,31.56694594,1324.0,1323.6,38.67315752]
[1673310586259,31.56694594,1324.0,1323.6,42.16402504]
[1673310586419,16.46053594,1324.0,1323.7,1.87445234]
[1673310586630,16.46053594,1324.0,1323.7,21.86121232]
[1673310586885,24.01385594,1324.0,1323.7,20.0514152]
[1673310587483,8.90741594,1324.0,1323.7,27.6059952]
[1673310588517,18.71654098,1324.0,1323.7,30.41769923]
[1673310589203,0.05,1323.9,1323.7,30.41769923]
[1673310590475,1.74749711,1323.9,1323.7,30.41769923]
[1673310590831,0.05,1323.9,1323.7,31.5475246]
[1673310591087,12.62885134,1324.1,1324.0,1.64099729]
[1673310591088,4.52034215,1324.1,1324.0,1.64099729]
[1673310591298,1.69749711,1324.1,1324.0,1.64099729]
[1673310591514,1.69749711,1324.1,1324.0,9.19386729]
[1673310591665,1.69749711,1324.1,1324.0,9.25852251]
[1673310591666,3.95374215,1324.1,1324.0,9.25852251]
[1673310591879,3.95374215,1324.1,1324.0,16.81139251]
[1673310591880,1.69749711,1324.1,1324.0,16.81139251]
[1673310592091,1.69749711,1324.1,1324.0,24.36426251]
[1673310592092,3.95374215,1324.1,1324.0,24.36426251]
[1673310592845,1.69749711,1324.1,1324.0,24.36426251]
[1673310593050,3.95374215,1324.1,1324.0,24.36426251]
[1673310593791,1.69749711,1324.1,1324.0,24.36426251]
[1673310594030,1.69749711,1324.1,1324.0,27.56097976]
[1673310596865,12.59924215,1324.2,1324.0,27.56097976]
[1673310597182,12.59924215,1324.2,1324.0,28.23755595]
[1673310598237,10.34299711,1324.2,1324.0,28.23755595]
[1673310599827,1.76349711,1324.2,1324.0,36.23755595]
[1673310600025,1.69749711,1324.2,1324.0,36.23755595]
[1673310601578,1.69749711,1324.2,1324.0,40.03521659]
[1673310602186,1.69749711,1324.2,1324.0,21.13181595]
[1673310602435,1.69749711,1324.2,1324.0,13.57894595]
[1673310602762,1.69749711,1324.2,1324.0,28.68437595]
[1673310603350,1.69749711,1324.2,1324.0,21.13152595]
[1673310603610,1.69749711,1324.2,1324.0,25.4876787]
[1673310604392,1.69749711,1324.2,1324.0,8.7752287]
[1673310604609,19.05731215,1324.2,1324.0,8.7752287]
[1673310604838,19.12331215,1324.2,1324.0,8.7752287]
[1673310605231,11.57146215,1324.2,1324.0,8.7752287]
[1673310606726,11.57146215,1324.2,1324.0,16.3280187]
[1673310606928,4.01974215,1324.2,1324.0,16.3280187]
[1673310607137,4.01974215,1324.2,1324.0,16.3280387]
[1673310607138,3.95374215,1324.2,1324.0,16.3280387]
[1673310607649,11.50552215,1324.2,1324.0,16.3280387]
[1673310607850,11.57152215,1324.2,1324.0,16.3280387]
[1673310608266,11.57152215,1324.2,1324.0,8.53579251]
[1673310608507,11.57152215,1324.2,1324.0,16.08865251]
[1673310608719,4.01974215,1324.2,1324.0,15.65151251]
[1673310608950,9.24924711,1324.2,1324.0,15.65151251]
[1673310609171,9.31524711,1324.2,1324.0,15.65151251]
[1673310611888,1.76349711,1324.2,1324.0,15.65151251]
[1673310612106,1.69749711,1324.2,1324.0,23.20438251]
[1673310613642,1.69749711,1324.2,1324.0,23.20108505]
[1673310613983,1.69749711,1324.2,1324.1,0.4837]
[1673310615329,1.69749711,1324.2,1324.1,8.03599]
[1673310615544,1.69749711,1324.2,1324.1,8.10064522]
[1673310615788,1.69749711,1324.2,1324.1,0.54835522]
[1673310615951,1.69749711,1324.2,1324.1,0.4837]
[1673310618675,3.95374215,1324.2,1324.1,0.4837]
[1673310619471,1.69749711,1324.2,1324.1,0.4837]
[1673310619836,1.69749711,1324.2,1324.1,23.14057]
[1673310620054,1.76721034,1324.3,1324.1,26.32881773]
[1673310620311,1.70121034,1324.3,1324.1,3.67194773]
[1673310620521,9.25258034,1324.3,1324.1,3.60729251]
[1673310620733,16.86995034,1324.3,1324.1,3.60729251]
[1673310621060,16.86995034,1324.3,1324.1,0.4837]
[1673310621581,26.67756538,1324.3,1324.1,0.4837]
[1673310621738,24.42132034,1324.3,1324.1,0.4837]
[1673310621943,26.67756538,1324.3,1324.1,0.4837]
[1673310622436,3.95374215,1324.2,1324.0,0.09535505]
[1673310622632,29.43001828,1324.1,1324.0,0.03069983]
[1673310622789,25.5431763,1324.1,1324.0,0.03069983]
[1673310623245,28.0431763,1324.1,1324.0,0.03069983]
[1673310623452,25.22287,1324.1,1324.0,0.03069983]
[1673310623890,28.05073889,1324.1,1324.0,0.03069983]
[1673310624070,28.61430847,1324.1,1324.0,0.03069983]
[1673310624472,25.55069628,1324.1,1324.0,0.03069983]
[1673310624684,25.54765324,1324.1,1324.0,0.03069983]
[1673310625345,26.77665324,1324.1,1324.0,0.03069983]
[1673310628156,26.82665324,1324.1,1324.0,0.03069983]
[1673310628359,26.77665324,1324.1,1324.0,0.03069983]
[1673310630265,26.82665324,1324.1,1324.0,0.03069983]
[1673310631531,34.37894324,1324.1,1324.0,0.03069983]
[1673310632279,34.32894324,1324.1,1324.0,0.03069983]
[1673310632457,34.32894324,1324.1,1324.0,0.56321839]
[1673310632674,36.59018403,1324.1,1324.0,0.56321839]
[1673310632916,36.59007778,1324.1,1324.0,0.56321839]
[1673310634390,33.7622515,1324.1,1324.0,0.56321839]
[1673310634790,36.59007778,1324.1,1324.0,0.56321839]
[1673310637769,35.36107778,1324.1,1324.0,0.56321839]
[1673310640025,32.5332515,1324.1,1324.0,0.56321839]
[1673310640763,35.36107778,1324.1,1324.0,0.56321839]
[1673310644501,32.5332515,1324.1,1324.0,0.56321839]
[1673310644660,32.5832515,1324.1,1324.0,0.56321839]
[1673310644876,32.5332515,1324.1,1324.0,0.56321839]
[1673310645115,35.36107778,1324.1,1324.0,0.56321839]
[1673310647295,33.09994324,1324.1,1324.0,0.56321839]
[1673310647858,35.36108438,1324.1,1324.0,0.56321839]
[1673310648439,35.36108438,1324.1,1324.0,0.56042924]
[1673310649850,32.5332581,1324.1,1324.0,0.56042924]
[1673310650324,35.36108438,1324.1,1324.0,0.56042924]
[1673310650791,33.09994324,1324.1,1324.0,0.56042924]
[1673310651104,35.36148374,1324.1,1324.0,0.56042924]
[1673310651315,33.09994324,1324.1,1324.0,0.56042924]
[1673310651482,35.3614188,1324.1,1324.0,0.56042924]
[1673310654053,32.53359252,1324.1,1324.0,0.56042924]
[1673310654629,33.09994324,1324.1,1324.0,0.56042924]
[1673310658438,30.27211696,1324.1,1324.0,0.56042924]
[1673310658950,33.66355543,1324.1,1324.0,0.56042924]
[1673310660882,34.23641406,1324.1,1324.0,0.56042924]
[1673310661282,39.15985885,1324.1,1324.0,0.56042924]
[1673310667216,38.0340747,1324.1,1324.0,0.56042924]
[1673310668622,34.0697776,1324.1,1324.0,0.56042924]
[1673310669094,38.0340747,1324.1,1324.0,0.56042924]
[1673310672848,34.0697776,1324.1,1324.0,0.56042924]
[1673310673035,34.0697776,1324.1,1324.0,0.55776561]
[1673310673250,38.0340747,1324.1,1324.0,0.53251856]
[1673310673505,34.0697776,1324.1,1324.0,0.53251856]
[1673310674721,37.46358072,1324.1,1324.0,0.53251856]
[1673310675931,37.46357662,1324.1,1324.0,0.53251856]
[1673310677488,34.0697776,1324.1,1324.0,0.53251856]
[1673310677681,37.4635223,1324.1,1324.0,0.53251856]
[1673310677886,34.0697776,1324.1,1324.0,0.53251856]
[1673310678293,37.46353633,1324.1,1324.0,0.53251856]
[1673310678503,34.0697776,1324.1,1324.0,0.53251856]
[1673310691900,38.0340747,1324.1,1324.0,0.53251856]
[1673310695282,38.0340747,1324.1,1324.0,0.5290863]
[1673310698400,34.0697776,1324.1,1324.0,0.5290863]
[1673310698839,38.0340747,1324.1,1324.0,0.5290863]
[1673310702492,34.0697776,1324.1,1324.0,0.5290863]
[1673310703282,38.0340747,1324.1,1324.0,0.5290863]
[1673310715644,38.0340747,1324.1,1324.0,0.52640173]
[1673310728259,34.0697776,1324.1,1324.0,0.52640173]
[1673310728694,38.75260355,1324.1,1324.0,0.52640173]
[1673310728883,2.5,1324.0,1323.8,0.6105]
[1673310729116,34.01142064,1323.9,1323.8,0.6105]
[1673310729342,34.07742064,1323.9,1323.8,0.6105]
[1673310729867,37.47520423,1323.9,1323.8,0.6105]
[1673310730028,34.07742064,1323.9,1323.8,0.6105]
[1673310730489,38.04669432,1323.9,1323.8,0.6105]
[1673310731395,34.08113387,1323.9,1323.8,0.6105]
[1673310731606,37.47770955,1323.9,1323.8,0.6105]
[1673310731882,34.08113387,1323.9,1323.8,0.6105]
[1673310733501,37.47692467,1323.9,1323.8,0.6105]
[1673310733916,2.5,1323.8,1323.7,10.29395522]
[1673310734145,32.71604,1323.8,1323.7,0.06465522]
[1673310734337,32.78204,1323.8,1323.5,8.02345522]
[1673310734547,1.69783239,1323.6,1323.5,8.02345522]
[1673310734794,31.91843239,1323.6,1323.5,0.06465522]
[1673310735083,31.98443239,1323.6,1323.4,10.98725522]
[1673310735328,31.98443239,1323.6,1323.4,0.63155522]
[1673310735673,31.98443239,1323.6,1323.4,3.5669]
[1673310737384,31.98443239,1323.6,1323.5,0.6355]
[1673310738889,30.2866,1323.6,1323.5,0.6355]
[1673310740446,31.98443239,1323.6,1323.5,0.6355]
[1673310745377,31.98443239,1323.6,1323.4,3.0]
[1673310745843,32.03443239,1323.6,1323.4,3.0]
[1673310746174,24.47928239,1323.6,1323.4,3.0]
[1673310746343,1.81383239,1323.6,1323.4,3.0]
[1673310746564,24.41328239,1323.6,1323.4,3.0]
[1673310746879,24.47928239,1323.6,1323.4,3.0]
[1673310747313,24.47928239,1323.6,1323.4,5.45177156]
[1673310747478,24.47928239,1323.6,1323.4,5.51642678]
[1673310747948,24.42928239,1323.6,1323.4,5.51642678]
[1673310749392,24.42928239,1323.6,1323.4,3.06465522]
[1673310749602,24.42928239,1323.6,1323.4,3.0]
[1673310750043,22.73145,1323.6,1323.4,3.0]
[1673310751915,22.78145,1323.6,1323.4,3.0]
[1673310752123,24.47928239,1323.6,1323.4,3.0]
[1673310753206,22.78145,1323.6,1323.4,3.0]
[1673310753423,22.78145,1323.6,1323.4,2.99618985]
[1673310754062,22.73145,1323.6,1323.4,2.99618985]
[1673310754212,26.69305891,1323.6,1323.4,2.99618985]
[1673310754792,26.69305891,1323.6,1323.5,0.61127655]
[1673310754943,24.42928239,1323.6,1323.5,0.61127655]
[1673310755596,26.69305891,1323.6,1323.5,0.61127655]
[1673310756524,24.99522652,1323.6,1323.5,0.61127655]
[1673310756733,26.69315311,1323.6,1323.5,0.61127655]
[1673310757202,24.99522652,1323.6,1323.5,0.61127655]
[1673310757953,26.69306932,1323.6,1323.5,0.61127655]
[1673310758098,26.74306932,1323.6,1323.5,0.61127655]
[1673310759306,25.04522652,1323.6,1323.5,0.61127655]
[1673310759652,26.74346937,1323.6,1323.5,0.61127655]
[1673310760315,26.69346937,1323.6,1323.5,0.61127655]
[1673310761169,24.99522652,1323.6,1323.5,0.61127655]
[1673310761484,26.69345882,1323.6,1323.5,0.61127655]
[1673310763393,24.99522652,1323.6,1323.5,0.61127655]
[1673310767412,27.82494717,1323.6,1323.5,0.61127655]
[1673310770038,24.99522652,1323.6,1323.5,0.61127655]
[1673310772451,26.69485169,1323.6,1323.5,0.61127655]
[1673310772602,1.76562517,1323.6,1323.5,0.61127655]
[1673310772974,20.20323717,1323.7,1323.6,1.12486518]
[1673310772975,9.32005504,1323.7,1323.6,1.12486518]
[1673310773129,16.87487504,1323.7,1323.6,1.12486518]
[1673310773344,24.42975504,1323.7,1323.6,1.12486518]
[1673310775492,22.73045,1323.7,1323.6,1.12486518]
[1673310776018,24.42975504,1323.7,1323.6,1.12486518]
[1673310776235,22.73045,1323.7,1323.6,1.12486518]
[1673310776759,22.73045,1323.7,1323.6,1.64436518]
[1673310776915,24.42975504,1323.7,1323.6,1.64436518]
[1673310780211,24.42975504,1323.7,1323.6,9.64436518]
[1673310780431,24.42975504,1323.7,1323.6,12.7090204]
[1673310782397,24.42975504,1323.7,1323.6,12.1895204]
[1673310787864,22.73045,1323.7,1323.6,12.1895204]
[1673310788424,24.42975504,1323.7,1323.6,12.1895204]
[1673310793232,34.24841156,1323.7,1323.6,1.1895204]
[1673310793445,35.37882717,1323.7,1323.6,1.12486518]
[1673310798993,32.54910652,1323.7,1323.6,1.12486518]
[1673310800512,35.37882717,1323.7,1323.6,1.12486518]
[1673310802715,35.83662717,1323.7,1323.6,1.12486518]
[1673310802926,28.28174717,1323.7,1323.6,1.12486518]
[1673310803443,25.45202652,1323.7,1323.6,1.12486518]
[1673310803853,27.14992376,1323.7,1323.6,1.12486518]
[1673310805646,27.19992376,1323.7,1323.6,1.12486518]
[1673310806687,25.50202652,1323.7,1323.6,1.12486518]
[1673310806897,27.20007081,1323.7,1323.6,1.12486518]
[1673310807494,27.15007081,1323.7,1323.6,1.12486518]
[1673310808236,28.28174717,1323.7,1323.6,1.12486518]
[1673310808598,25.45202652,1323.7,1323.6,1.12486518]
[1673310809313,28.28174717,1323.7,1323.6,1.12486518]
[1673310811731,26.01797065,1323.7,1323.6,1.12486518]
[1673310813691,26.06797065,1323.7,1323.6,1.12486518]
[1673310815688,26.01797065,1323.7,1323.6,1.12486518]
[1673310815898,26.06797065,1323.7,1323.6,1.12486518]
[1673310817849,26.01797065,1323.7,1323.6,1.12486518]
[1673310819529,27.15173054,1323.7,1323.6,1.12486518]
[1673310819895,28.28285961,1323.7,1323.6,1.12486518]
[1673310820105,25.45313896,1323.7,1323.6,1.12486518]
[1673310820767,28.28285961,1323.7,1323.6,1.12486518]
[1673310821699,26.01797065,1323.7,1323.6,1.12486518]
[1673310822121,26.06797065,1323.7,1323.6,1.12486518]
[1673310824251,26.01797065,1323.7,1323.6,1.12486518]
[1673310824849,28.28306405,1323.7,1323.6,1.12486518]
[1673310825616,26.01797065,1323.7,1323.6,1.12486518]
[1673310826151,26.06797065,1323.7,1323.6,1.12486518]
[1673310826481,28.33317676,1323.7,1323.6,1.12486518]
[1673310826674,28.33316684,1323.7,1323.6,1.12486518]
[1673310827736,28.33335263,1323.7,1323.6,1.12486518]
[1673310828113,28.28335263,1323.7,1323.6,1.12486518]
[1673310832456,5.61890263,1323.7,1323.6,1.12486518]
[1673310832623,28.28264263,1323.7,1323.6,1.12486518]
[1673310834862,26.01726065,1323.7,1323.6,1.12486518]
[1673310835451,28.28330859,1323.7,1323.6,1.12486518]
[1673310835657,26.01726065,1323.7,1323.6,1.12486518]
[1673310836076,28.28330234,1323.7,1323.6,1.12486518]
[1673310839477,25.45358169,1323.7,1323.6,1.12486518]
[1673310840430,28.28330234,1323.7,1323.6,1.12486518]
[1673310847368,25.45358169,1323.7,1323.6,1.12486518]
[1673310851623,28.28330234,1323.7,1323.6,1.12486518]
[1673310851831,25.45358169,1323.7,1323.6,1.12486518]
[1673310853408,28.28330234,1323.7,1323.6,1.12486518]
[1673310853937,28.28303595,1323.7,1323.6,1.12486518]
[1673310854384,28.2830488,1323.7,1323.6,1.12486518]
[1673310854600,26.01726065,1323.7,1323.6,1.12486518]
[1673310854938,28.28303584,1323.7,1323.6,1.12486518]
[1673310855786,26.01726065,1323.7,1323.6,1.12486518]
[1673310857349,30.74212,1323.7,1323.6,1.12486518]
[1673310857738,34.1379108,1323.7,1323.6,1.12486518]
[1673310858100,26.5833308,1323.7,1323.6,1.12486518]
[1673310861018,26.5833308,1323.7,1323.6,1.12158914]
[1673310863376,26.6333308,1323.7,1323.6,1.12158914]
[1673310865231,26.5833308,1323.7,1323.6,1.12158914]
[1673310865429,26.5833308,1323.7,1323.4,7.56985522]
[1673310865646,3.96237153,1323.5,1323.4,7.56985522]
[1673310865852,3.96237153,1323.5,1323.4,0.06465522]
[1673310866098,3.96237153,1323.5,1323.3,29.26173108]
[1673310866477,3.96237153,1323.5,1323.3,18.66993108]
[1673310873094,1.69815923,1323.5,1323.3,18.66993108]
[1673310873764,9.25395923,1323.5,1323.3,11.11331108]
[1673310874019,9.31995923,1323.5,1323.3,11.11331108]
[1673310874414,1.76415923,1323.5,1323.3,18.67007108]
[1673310874762,1.69815923,1323.5,1323.3,18.67007108]
[1673310875284,9.25388923,1323.5,1323.3,18.67007108]
[1673310875551,9.31988923,1323.5,1323.3,11.11331108]
[1673310875729,16.87561923,1323.5,1323.3,11.11331108]
[1673310877570,1.76415923,1323.5,1323.3,11.11331108]
[1673310877772,1.69815923,1323.5,1323.3,18.67003108]
[1673310880299,9.25387923,1323.5,1323.3,18.67003108]
[1673310880528,9.31987923,1323.5,1323.3,18.67003108]
[1673310883289,9.31987923,1323.5,1323.3,11.11331108]
[1673310883655,9.31987923,1323.5,1323.3,18.67015108]
[1673310883864,1.81415923,1323.5,1323.3,18.67015108]
[1673310884069,1.74815923,1323.5,1323.3,20.98179407]
[1673310884327,0.05,1323.5,1323.3,28.53865407]
[1673310884920,0.05,1323.5,1323.3,28.53497591]
[1673310885380,0.05,1323.5,1323.3,20.97811591]
[1673310885812,0.05,1323.5,1323.3,13.42127591]
[1673310886117,7.55592,1323.5,1323.3,13.42127591]
[1673310886283,7.62192,1323.5,1323.3,13.42127591]
[1673310887397,9.32007923,1323.5,1323.3,13.42127591]
[1673310887551,9.32007923,1323.5,1323.3,20.97812591]
[1673310887753,1.76415923,1323.5,1323.3,20.97812591]
[1673310887960,1.69815923,1323.5,1323.3,20.97812591]
[1673310888500,34.88129476,1323.6,1323.3,20.97812591]
[1673310889655,1.69815923,1323.5,1323.3,20.97812591]
[1673310890080,9.25397923,1323.5,1323.3,20.97812591]
[1673310890294,9.31997923,1323.5,1323.3,20.97812591]
[1673310892317,9.31997923,1323.5,1323.3,13.42127591]
[1673310893458,9.31997923,1323.5,1323.3,16.23387782]
[1673310893805,9.31997923,1323.5,1323.3,13.42127591]
[1673310895575,9.31997923,1323.5,1323.3,16.23390796]
[1673310895791,9.31997923,1323.5,1323.3,13.42127591]
[1673310895977,9.31997923,1323.5,1323.3,11.10963292]
[1673310896384,16.87579923,1323.5,1323.3,11.10963292]
[1673310897207,19.14001153,1323.5,1323.3,13.92226752]
[1673310899417,1.76415923,1323.5,1323.3,21.47910752]
[1673310899679,1.69815923,1323.5,1323.3,21.47910752]
[1673310899993,1.69815923,1323.5,1323.3,29.03596752]
[1673310900379,3.96237153,1323.5,1323.3,29.03596752]
[1673310900934,3.96237153,1323.5,1323.3,21.47910752]
[1673310901146,11.51823153,1323.5,1323.3,21.47910752]
[1673310901361,11.58423153,1323.5,1323.3,13.92226752]
[1673310901681,19.1415719,1323.5,1323.3,11.10963292]
[1673310901985,1.69964297,1323.4,1323.3,11.10963292]
[1673310902174,1.69960737,1323.4,1323.3,11.10963292]
[1673310902390,26.69757274,1323.5,1323.3,15.79740494]
[1673310902564,26.69757274,1323.5,1323.3,13.92229613]
[1673310903017,1.69960044,1323.4,1323.3,11.10963292]
[1673310903233,16.81218044,1323.4,1323.3,3.10963292]
[1673310903455,16.81218044,1323.4,1323.3,3.0449777]
[1673310903456,26.69868274,1323.4,1323.3,3.0449777]
[1673310906791,24.43447044,1323.4,1323.3,3.0449777]
[1673310908469,26.69868274,1323.4,1323.3,3.0449777]
[1673310909038,24.43447044,1323.4,1323.3,3.0449777]
[1673310909846,24.43447044,1323.4,1323.3,3.04195946]
[1673310910770,16.87783387,1323.4,1323.3,3.04195946]
[1673310911009,16.87785484,1323.4,1323.3,3.04195946]
[1673310911347,15.17858,1323.4,1323.3,3.04195946]
[1673310911869,16.87782027,1323.4,1323.3,3.04195946]
[1673310912298,15.17858,1323.4,1323.3,3.04195946]
[1673310915079,0.066,1323.4,1323.3,4.91703289]
[1673310915337,1.6992291,1323.5,1323.3,16.71264627]
[1673310915514,1.6992291,1323.5,1323.3,17.7150825]
[1673310916392,1.6992291,1323.5,1323.3,13.47632912]
[1673310917049,1.6992291,1323.5,1323.3,21.03318912]
[1673310918666,1.6992291,1323.5,1323.3,13.47632912]
[1673310919312,1.6992291,1323.5,1323.3,21.03318912]
[1673310920588,1.6992291,1323.5,1323.4,0.40682949]
[1673310921493,1.6992291,1323.5,1323.3,13.47612912]
[1673310922118,12.21595463,1323.6,1323.3,19.32690263]
[1673310922328,9.9480291,1323.6,1323.5,2.5]
[1673310922568,4.0294414,1323.6,1323.4,0.06465522]
[1673310922782,4.0294414,1323.6,1323.3,23.8771036]
[1673310922783,3.9634414,1323.6,1323.3,31.49822882]
[1673310923009,3.9634414,1323.6,1323.3,39.05470882]
[1673310923418,1.6992291,1323.6,1323.4,4.37496527]
[1673310923631,3.9634414,1323.6,1323.4,1.87496527]
[1673310923958,3.9634414,1323.6,1323.4,5.57353529]
[1673310924132,3.9634414,1323.6,1323.4,5.63819051]
[1673310924338,3.9634414,1323.6,1323.4,13.19446051]
[1673310925590,11.5186214,1323.6,1323.4,13.19446051]
[1673310925799,11.5846214,1323.6,1323.4,13.19446051]
[1673310926444,11.5846214,1323.6,1323.4,5.63819051]
[1673310927078,19.1398014,1323.6,1323.4,5.63819051]
[1673310927536,11.5846214,1323.6,1323.4,5.63819051]
[1673310928461,4.0294414,1323.6,1323.4,13.19447051]
[1673310928638,3.9634414,1323.6,1323.4,13.19447051]
[1673310929601,1.6992291,1323.6,1323.4,13.19447051]
[1673310929796,3.9634414,1323.6,1323.4,13.19447051]
[1673310930008,3.9634414,1323.6,1323.4,9.49590049]
[1673310930234,11.5186514,1323.6,1323.4,9.49590049]
[1673310930451,11.5846514,1323.6,1323.4,9.49590049]
[1673310931942,4.0294414,1323.6,1323.4,9.49590049]
[1673310932171,3.9634414,1323.6,1323.4,9.49590049]
[1673310935051,3.9634414,1323.6,1323.4,17.05219049]
[1673310937402,1.6992291,1323.6,1323.4,24.83231753]
[1673310937611,0.5238,1323.7,1323.6,2.82409947]
[1673310937852,0.4578,1323.7,1323.6,31.48954947]
[1673310938156,0.4578,1323.7,1323.6,28.05420469]
[1673310938770,0.4578,1323.7,1323.6,35.58186533]
[1673310938954,0.4578,1323.7,1323.6,123.3569154]
[1673310939317,0.4578,1323.7,1323.6,128.05293485]
[1673310939620,0.4578,1323.7,1323.6,128.05493485]
[1673310940414,0.4578,1323.7,1323.6,126.9238154]
[1673310941112,0.4578,1323.7,1323.6,124.1120573]
[1673310941492,0.4578,1323.7,1323.6,126.92375717]
[1673310942636,0.4578,1323.7,1323.6,123.5451573]
[1673310942850,0.4578,1323.7,1323.6,44.82442288]
[1673310943422,0.4578,1323.7,1323.6,50.50506748]
[1673310948023,0.4578,1323.7,1323.6,52.77806748]
[1673310950881,0.4578,1323.7,1323.6,49.27806748]
[1673310951897,0.4578,1323.7,1323.6,52.77806748]
[1673310952110,0.4578,1323.7,1323.6,49.27806748]
[1673310953407,0.066,1324.0,1323.7,2.5]
[1673310953578,8.9305,1324.1,1323.8,34.01370064]
[1673310953929,8.9305,1324.1,1323.9,3.0]
[1673310954087,18.1820991,1324.1,1323.9,10.55322]
[1673310954303,16.48287,1324.1,1323.9,10.61787522]
[1673310954586,10.6297291,1324.1,1323.9,10.61787522]
[1673310954789,8.9305,1324.1,1323.9,10.61787522]
[1673310955305,16.48287,1324.1,1323.9,10.6236958]
[1673310955497,16.48287,1324.1,1323.9,3.0704758]
[1673310955724,16.48287,1324.1,1323.9,3.00582058]
[1673310956338,16.48287,1324.1,1323.9,5.95881422]
[1673310956552,16.48287,1324.1,1323.9,6.02346944]
[1673310958152,18.1820991,1324.1,1323.9,6.02346944]